Cogmind - Beta 14 @@@ ROGUE MODE // 2024.08.08 @ 22:59:57 Player: APerTAS Result: Destroyed by Y-45 Defender with Heavy Assault Rifle Performance ------------- Evolutions (2) 1000 Regions Visited (5) 1000 Robots Destroyed (1) 5 Value Destroyed (91) 91 Prototype IDs (0) 0 Alien Tech Used (0) 0 Bonus (470) 470 TOTAL SCORE: 2566 Bonus ------- Pacifist 470 Cogmind --------- Core Integrity 0/550 Matter 297/300 Energy 99/100 System Corruption 0% Temperature Cool (9) Movement Core (50) Location -8/Storage Parts ------- > --- POWER (5) -------- (None) > --- PROPULSION (2) --- (None) > --- UTILITY (2) ------ (None) > --- WEAPON (2) ------- (None) > --- INVENTORY (5) ---- (None) Peak State ------------ > --- POWER ------------ (None) > --- PROPULSION ------- (None) > --- UTILITY ---------- (None) > --- WEAPON ----------- Improved Datajack > --- INVENTORY -------- (None) [Rating: 3] Favorites ----------- Power None Propulsion None Utility None Weapon Improved Datajack Special Melee Weapon Improved Datajack Build | -11 -10 -9 -9 -8 -8 ------- Run | Yrd Mat Mat Min Mat Sto Slots Evolved 4 | . . 2 . 2 . Power 4 | . . 2 . 2 . Propulsion . | . . . . . . Utility . | . . . . . . Weapon . | . . . . . . Parts Attached 1 | . . . . . 1 Power . | . . . . . . Engine . | . . . . . . Core . | . . . . . . Reactor . | . . . . . . Propulsion . | . . . . . . Treads . | . . . . . . Leg . | . . . . . . Wheel . | . . . . . . Hover . | . . . . . . Flight . | . . . . . . Utility . | . . . . . . Device . | . . . . . . Storage . | . . . . . . Processor . | . . . . . . Hackware . | . . . . . . Protection . | . . . . . . Artifact . | . . . . . . Weapon 1 | . . . . . 1 Energy Gun . | . . . . . . Energy Cannon . | . . . . . . Ballistic Gun . | . . . . . . Ballistic Cannon . | . . . . . . Launcher . | . . . . . . Special Weapon . | . . . . . . Impact Weapon . | . . . . . . Slashing Weapon . | . . . . . . Piercing Weapon . | . . . . . . Special Melee Weapon 1 | . . . . . 1 Unidentified Prototypes . | . . . . . . Parts Lost 1 | . . . . . 1 Power . | . . . . . . Propulsion . | . . . . . . Utility . | . . . . . . Weapon 1 | . . . . . 1 Highest Loss Streak 1 | . . . . . 1 To Critical Strikes . | . . . . . . Average Slot Usage (%) . | . . . . . . Peak Build Rating 3 | . . . . . 3 Average Rating . | . . . . . . On Entrance . | . . . . . . Naked Turns 387 | . 88 98 102 33 66 Heaviest Build 1 | . . . . . 1 Greatest Support 3 | 3 3 3 3 3 3 Greatest Overweight (x) . | . . . . . . Average Overweight (x) . | . . . . . . Largest Inventory Capacity 5 | 5 5 5 5 5 5 Average Capacity 5 | 5 5 5 5 5 5 Most Carried . | . . . . . . Average Carried . | . . . . . . Final Capacity 5 | 5 5 5 5 5 5 Final Carried . | . . . . . . Class Distribution -------------------- 100% | Mutant Dominant Class ---------------- Mutant | -10/Materials Mutant | -9/Materials Mutant | -9/Mines Mutant | -8/Materials Mutant | -8/Storage Resources | -11 -10 -9 -9 -8 -8 ----------- Run | Yrd Mat Mat Min Mat Sto Matter Collected 200 | 91 109 . . . . Remotely . | . . . . . . Salvage Created 10 | . . . . . 10 Parts . | . . . . . . Haulers Intercepted . | . . . . . . Recyclers Shooed . | . . . . . . Parts Field Recycled . | . . . . . . Retrieved Matter . | . . . . . . Parts Self-Destructed . | . . . . . . Prevented . | . . . . . . Kills | -11 -10 -9 -9 -8 -8 ------- Run | Yrd Mat Mat Min Mat Sto Combat Hostiles Destroyed . | . . . . . . Classes Destroyed 1 | . . . . . 1 Worker 1 | . . . . . 1 Best Kill Streak 1 | . . . . . 1 Combat Bots Only . | . . . . . . Max Kills in Single Turn 1 | . . . . . 1 Gunslinging . | . . . . . . Exploded . | . . . . . . Melee . | . . . . . . Uniques/NPCs Destroyed . | . . . . . . Combat | -11 -10 -9 -9 -8 -8 -------- Run | Yrd Mat Mat Min Mat Sto Hostile Shots Fired 71 | . 1 18 . 16 36 Missed 29 | . 1 6 . 9 13 Damage Taken 745 | . . 154 . 243 348 Core 718 | . . 154 . 243 321 Absorbed by Shields . | . . . . . . Core Remaining (%) 87 | 100 100 . 61 . . Volleys Fired . | . . . . . . Largest . | . . . . . . Hottest . | . . . . . . Shots Fired . | . . . . . . Gun . | . . . . . . Cannon . | . . . . . . Launcher . | . . . . . . Special . | . . . . . . Kinetic . | . . . . . . Thermal . | . . . . . . Explosive . | . . . . . . Electromagnetic . | . . . . . . Robot Hit Streak . | . . . . . . Robot Miss Streak . | . . . . . . Penetration Max . | . . . . . . Secondary Targets . | . . . . . . Shots Hit Robots 1 | . . . . . 1 Core Hits 3 | . . . . . 3 Critical Kills . | . . . . . . Critical Parts Destroyed . | . . . . . . Critical Strikes . | . . . . . . Melee Attacks 1 | . . . . . 1 Impact . | . . . . . . Slashing . | . . . . . . Piercing . | . . . . . . Sneak Attacks . | . . . . . . Combat Hostiles . | . . . . . . Follow-up Attacks . | . . . . . . Damage Inflicted 353 | . . 2 . . 351 Guns . | . . . . . . Cannons . | . . . . . . Explosions 345 | . . . . . 345 Melee . | . . . . . . Ramming 8 | . . 2 . . 6 Kinetic . | . . . . . . Thermal . | . . . . . . Explosive 345 | . . . . . 345 Electromagnetic . | . . . . . . Impact . | . . . . . . Slashing . | . . . . . . Piercing . | . . . . . . Highest Corruption . | . . . . . . Average Corruption . | . . . . . . Corruption Purged . | . . . . . . Corruption Blocked . | . . . . . . Overload Shots . | . . . . . . Overflow Damage 6 | . . . . . 6 Projectiles . | . . . . . . Explosions 6 | . . . . . 6 Melee . | . . . . . . Knockbacks . | . . . . . . Impact . | . . . . . . Kinetic . | . . . . . . Secondary . | . . . . . . Self-Inflicted Damage 3 | . . . . . 3 Shots . | . . . . . . Rammed 3 | . . 2 . . 1 Targets Rammed 3 | . . 2 . . 1 Kicked . | . . . . . . Crushed . | . . . . . . Highest Temperature 5 | . . . . . 5 Average Temperature 3 | . . . . . 3 Received Heat Transfer 255 | . . 66 . 9 180 Siege Activations . | . . . . . . Robots Corrupted . | . . . . . . Combat Hostiles . | . . . . . . Parts Fried . | . . . . . . Impact Corruptions . | . . . . . . Robots Melted . | . . . . . . Combat Hostiles . | . . . . . . Parts Melted . | . . . . . . Heat Transferred . | . . . . . . Parts Sabotaged . | . . . . . . Parts Stolen . | . . . . . . Parts Stripped . | . . . . . . Power Chain Reactions . | . . . . . . Alert | -11 -10 -9 -9 -8 -8 ------- Run | Yrd Mat Mat Min Mat Sto Peak Influence 211 | . 36 86 33 27 211 Initial 33 | . . 14 33 12 11 Average 40 | . 13 46 33 16 95 Maximum Alert Level 1 | . . . . . 1 Low Security (%) 97 | 100 100 100 100 100 84 Level 1 2 | . . . . . 15 Level 2 . | . . . . . . Level 3 . | . . . . . . Level 4 . | . . . . . . Level 5 . | . . . . . . High Security . | . . . . . . Max Security . | . . . . . . Squads Dispatched 11 | . 4 2 . 2 3 Investigation 10 | . 4 2 . 1 3 Extermination . | . . . . . . Reinforcement 1 | . . . . 1 . Assault . | . . . . . . Garrison . | . . . . . . Intercept . | . . . . . . Searches Triggered . | . . . . . . Construction Impeded . | . . . . . . Haulers Reinforced . | . . . . . . Active Scanning Responses . | . . . . . . Cargo Convoy Interrupts . | . . . . . . Stealth | -11 -10 -9 -9 -8 -8 --------- Run | Yrd Mat Mat Min Mat Sto Distress Signals 4 | . . 2 . . 2 Communications Jammed . | . . . . . . Distress Signals . | . . . . . . Times Spotted 34 | . 3 12 . 5 14 Peak Tracking Total 15 | . 3 14 . 6 15 Tactical Retreats 1 | . . . . . 1 Traps | -11 -10 -9 -9 -8 -8 ------- Run | Yrd Mat Mat Min Mat Sto Traps Triggered 3 | . 2 . . 1 . Indirectly . | . . . . . . Trap Hack Attempts . | . . . . . . Triggered . | . . . . . . Disarmed . | . . . . . . Reprogrammed . | . . . . . . Reused . | . . . . . . Traps Extracted . | . . . . . . Installed . | . . . . . . Triggered . | . . . . . . Objects Rigged 5 | . . . . . 5 Exploded 2 | . . . . . 2 Machines | -11 -10 -9 -9 -8 -8 ---------- Run | Yrd Mat Mat Min Mat Sto Machines Disabled 3 | . . . . . 3 Max in Single Turn 1 | . . . . . 1 Machines Repaired . | . . . . . . Machines Dismantled . | . . . . . . Machines Sabotaged 1 | . . . . . 1 Overloaded Fab Kills . | . . . . . . Hacking | -11 -10 -9 -9 -8 -8 --------- Run | Yrd Mat Mat Min Mat Sto Machines Accessed 8 | . 2 3 . . 3 Terminals 5 | . 1 2 . . 2 Fabricators . | . . . . . . Repair Stations 1 | . . . . . 1 Recycling Units 2 | . 1 1 . . . Scanalyzers . | . . . . . . Garrison Access . | . . . . . . Total Hacks 27 | . 6 12 . . 9 Successful 14 | . 6 6 . . 2 Failed 13 | . . 6 . . 7 Catastrophic 2 | . . 1 . . 1 Database Lockouts . | . . . . . . Manual 23 | . 6 10 . . 7 Terminals 17 | . 2 8 . . 7 Fabricators . | . . . . . . Repair Stations 2 | . . . . . 2 Recycling Units 8 | . 4 4 . . . Scanalyzers . | . . . . . . Garrison Access . | . . . . . . Terminal Hacks 1 | . . 1 . . . Terminal Index 1 | . . 1 . . . Fabricator Hacks . | . . . . . . Repair Station Hacks . | . . . . . . Recycling Unit Hacks . | . . . . . . Scanalyzer . | . . . . . . Garrison Access Hacks . | . . . . . . Unauthorized Hacks 6 | . 3 1 . . 2 Terminals 5 | . 2 1 . . 2 Botnet 2 | . 1 1 . . . Detonate 1 | . . . . . 1 Sabotage 2 | . 1 . . . 1 Fabricators . | . . . . . . Repair Stations . | . . . . . . Recycling Units 1 | . 1 . . . . Tunnel 1 | . 1 . . . . Scanalyzers . | . . . . . . Garrison Access . | . . . . . . Data Cores Recovered . | . . . . . . Used . | . . . . . . Hacking Detections 7 | . 1 3 . . 3 Full Trace Events 4 | . . 2 . . 2 Feedback Events . | . . . . . . Feedback Blocked . | . . . . . . Robot Schematics Acquired . | . . . . . . Robots Built . | . . . . . . Authchips . | . . . . . . Time . | . . . . . . Total Robot Build Rating . | . . . . . . Part Schematics Acquired . | . . . . . . Parts Built . | . . . . . . Authchips . | . . . . . . Time . | . . . . . . Total Part Build Rating . | . . . . . . Parts Repaired . | . . . . . . Time . | . . . . . . Parts Recycled . | . . . . . . Recycled Matter . | . . . . . . Retrieved Matter . | . . . . . . Retrieved Components . | . . . . . . Parts Scanalyzed . | . . . . . . Part Schematics Acquired . | . . . . . . Parts Damaged . | . . . . . . Bothacking | -11 -10 -9 -9 -8 -8 ------------ Run | Yrd Mat Mat Min Mat Sto Used RIF Installer . | . . . . . . Robots Hacked 1 | . . . . . 1 Non-combat . | . . . . . . Combat 1 | . . . . . 1 Robot Hacks Applied 1 | . . . . . 1 parse_system 1 | . . . . . 1 Relay Couplers Released . | . . . . . . Fabnet Peak Effective % . | . . . . . . Robots Rewired . | . . . . . . Allies Hacked . | . . . . . . Hacks Repelled . | . . . . . . Allies | -11 -10 -9 -9 -8 -8 -------- Run | Yrd Mat Mat Min Mat Sto Total Allies . | . . . . . . Largest Group . | . . . . . . Highest-Rated Group . | . . . . . . Highest-Rated Ally . | . . . . . . Total Orders . | . . . . . . Ally Attacks . | . . . . . . Total Damage . | . . . . . . Kills . | . . . . . . Allies Corrupted . | . . . . . . Allies Melted . | . . . . . . Intel | -11 -10 -9 -9 -8 -8 ------- Run | Yrd Mat Mat Min Mat Sto Robot Analysis Total . | . . . . . . Derelict Logs Recovered . | . . . . . . Drone Launches . | . . . . . . Drone Recoveries . | . . . . . . Exploration | -11 -10 -9 -9 -8 -8 ------------- Run | Yrd Mat Mat Min Mat Sto Turns Passed 401 | 10 88 98 102 33 70 Spaces Moved 630 | 20 174 191 49 64 132 Core 630 | 20 174 191 49 64 132 Treads . | . . . . . . Legs . | . . . . . . Wheels . | . . . . . . Hover . | . . . . . . Flight . | . . . . . . Fastest Speed 50 | 50 50 50 50 50 50 Average Speed 50 | 50 50 50 50 50 50 Slowest Speed 50 | 50 50 50 50 50 50 Overloaded Moves . | . . . . . . Propulsion Burnouts . | . . . . . . Robots Hopped . | . . . . . . Cave-ins Triggered . | . . . . . . Exploration Rate (%) 20 | 3 38 22 15 10 35 Regions Visited 5 Branch Regions 2 Pre-discovered Areas 1 | . 1 . . . . Known Exits Taken . | . . . . . . Unknown Exits Taken 5 | 1 1 1 1 1 . Scrap Searched . | . . . . . . Spaces Dug . | . . . . . . Terrain Destroyed 33 | . . . . . 33 Melee . | . . . . . . Projectile . | . . . . . . AOE 33 | . . . . . 33 Terrain Rammed . | . . . . . . Walls Destroyed . | . . . . . . Machines Disabled . | . . . . . . Actions | -11 -10 -9 -9 -8 -8 --------- Run | Yrd Mat Mat Min Mat Sto Total 709 | 19 174 192 125 64 135 Wait 2 | . 1 . . 1 . Move 625 | 19 173 190 48 63 132 Hop . | . . . . . . Pick Up . | . . . . . . Fast Attach 1 | . . . . . 1 Attach . | . . . . . . Detach . | . . . . . . Swap . | . . . . . . Drop . | . . . . . . Fire . | . . . . . . Melee 1 | . . . . . 1 Ram 3 | . . 2 . . 1 Kick . | . . . . . . Crush . | . . . . . . Escape Stasis . | . . . . . . Rewire 77 | . . . 77 . . Trap . | . . . . . . Miscellaneous . | . . . . . . Route ------- -11/Scrapyard -10/Materials -9/Materials -9/Mines -8/Materials -8/Storage History --------- Turn | Location | Event 3 | -11/Scrapyard | Discovered new exit (range 15) 11 | -11/Scrapyard | Entered Materials 97 | -10/Materials | Discovered new exit (range 5) 99 | -10/Materials | Entered another Materials area 99 | -9/Materials | Evolved 2 slots: Power x2 193 | -9/Materials | Discovered new exit (range 8) 197 | -9/Materials | Entered Mines 279 | -9/Mines | Discovered new exit (range 10) 299 | -9/Mines | Entered Materials 299 | -8/Materials | Evolved 2 slots: Power x2 305 | -8/Materials | Build established: Mutant 321 | -8/Materials | Discovered new exit (range 13) 332 | -8/Materials | Entered Storage 372 | -8/Storage | Core integrity fell below 50% 379 | -8/Storage | Core integrity fell below 20% 402 | -8/Storage | Destroyed by Y-45 Defender with Heavy Assault Rifle Last Messages --------------- Investigation squad. 00373_ W-25 Informer sends out distress signal. 00388_ O-24 Administrator sends out distress signal. 00388_ O-24 Administrator: "IFF HANDSHAKE FAILED. SECURING TERMINAL." 00390_ Connecting with Terminal... >>Force(Sabotage) SYSTEM_VULNERABLE[Compression Vault] NETWORK_OVERLOAD COORDINATES_RETRIEVED 00390_ ALERT: Suspicious activity at Terminal S010. Dispatching Investigation squad. 00393_ Acquired Imp. Datajack. 00397_ Jacked Y-45 Defender... Right-click on available options for more info. Keyboard players can use Shift-a~z. >>parse_system Reading system data... 00397_ Imp. Datajack destroyed. 00397_ Critical hit (Burn: +37). 00401_ Slammed into Y-45 Defender. Map ----- +----------------------------------------------------+ | | | | | ???????????????????????????????????? | | ???????????????????????????????????? | | ???????????????????????????????????? | | ???????????????????????????????????? | | ???????????????????????????????????? | | ???????????????????????????????????? | | ???????????????????????????????????? | | ???????????????????????????????????? | | ???????????????????????????????????? | | ???????????????????????????????????? | | ???????????????????????????????????? | | ???????????????????????????????????? | | ?????###########???????????????????? | | ?????# ###?????????????????? | | ??????# ""#?????????????????? | | ??????# ""#?????????????????? | | ??????# """ T"#?????????????????? | | ??????# """ ""#?????????????????? | | ??????# """ ""#?????????????????? | | ??????# """ ###?????????????????? | | ??????# """ #????##?????????????? | | ??????# ##### ###???????????? | | ??????######/### #???????????? | | ??????????#@Yg g #??????????## | | ??????????# ## ########???# | | ??????????# ## """## ?# | | ??????????# ## """## #[ | | ??????????# ## """## # | | ??????????# ## ## """ # | | ??????????# g ## """## " " """ # | | ??????????# ## """# "G" """ # | | ??????????# Y## """## """ # | | ?????????## ## ## ??# | | ?????????# ####+######+##"###### | | ?????????# # | | ?????????# | | ?????????# | | ?????????# ######## " ###### | | ?????????## ???????# "%" #???# | | ??????????# ????????# " #???# | | ??????????# ?????????# #???# | | ??????????#????????? % #???# | | ???????????????????" #??## | | ??????????????????"" ! + | | ??????????????????"" #??# | | ?????????????????? #??# | | ??????????????????"" %# #???? | | ??????????????????"" ## ###???? | +----------------------------------------------------+ Best States ------------- Heat Dissipation 31 Energy Generation 5 Energy Capacity 100 Matter Stores 300 Matter Capacity 300 Sight Range 16 Terrain Scan Density 10 Evasion (%) 50 Item Schematics ----------------- None Robot Schematics ------------------ None Fabricated ------------ Nothing Alien Tech Used ----------------- None Achievements -------------- None Challenges ------------ None Game ------ Seed RecoilChainNanoactuators Manual? 0 Play Time 00:07:26 Cumulative 17.2 hours Start 2024.08.08 @ 22:53:51 End 2024.08.08 @ 22:59:57 Sessions 1 Manual Loads 0 Difficulty Rogue Special Mode None Game No. 81 Rogue 81 Adventurer 0 Explorer 0 Win Type - Total 0 Types 0/0/0/0/0/0/0/0/0 Lore% 27 Gallery% 22 Achievement% 32 Wizard Run 0 Options --------- Layout 0 ASCII 0 Keyboard 0 Movement Arrows Keybinds 0 Fullscreen 2 Font 18/Terminus Map View 76x50 Zoom Use 0% Tactical HUD 1 Map Filters NONE Filters NONE Steam 1 RUN: c8888b68-dd48-4082-8c0f-3f7914731242